[Event "12h Blitz Kuppenheim Endrunde"]
[Site "Kuppenheim"]
[Date "2005.06.04"]
[Round "?"]
[White "Schmitt"]
[Black "KingLoek"]
[Result "0-1"]
[ECO "B82"]
[WhiteElo "2150"]
[BlackElo "2685"]
[PlyCount "74"]
[EventDate "2005.06.03"]
[EventType "blitz"]
[Source "Kuppenheim"]
[SourceDate "2005.01.01"]
[TimeControl "240"]

1. e4 {[%emt 0:00:01]} c5 {[%emt 0:00:02]} 2. Nf3 {[%emt 0:00:00]} d6 {
[%emt 0:00:01]} 3. d4 {[%emt 0:00:00]} cxd4 {[%emt 0:00:01]} 4. Nxd4 {
[%emt 0:00:00]} Nf6 {[%emt 0:00:01]} 5. Nc3 {[%emt 0:00:00]} a6 {[%emt 0:00:02]
} 6. f4 {[%emt 0:00:02]} e6 {[%emt 0:00:03]} 7. Qf3 {[%emt 0:00:02]} Qb6 {
[%emt 0:00:01]} 8. a3 {[%emt 0:00:03]} Nc6 {[%emt 0:00:01]} 9. Nb3 {
[%emt 0:00:02]} Qc7 {[%emt 0:00:03]} 10. Be3 {[%emt 0:00:01]} b5 {
[%emt 0:00:01]} 11. Bd3 {[%emt 0:00:01]} Bb7 {[%emt 0:00:01]} 12. O-O {
[%emt 0:00:03]} Be7 {[%emt 0:00:02]} 13. g4 {[%emt 0:00:03]} O-O {
[%emt 0:00:02]} 14. g5 {[%emt 0:00:02]} Nd7 {[%emt 0:00:01]} 15. Qh5 {
[%emt 0:00:04]} Rfe8 {[%emt 0:00:07]} 16. Rf3 {[%emt 0:00:01]} g6 {
[%emt 0:00:02]} 17. Qh6 {[%emt 0:00:03]} Bf8 {[%emt 0:00:02]} 18. Qh4 {
[%emt 0:00:01]} Bg7 {[%emt 0:00:01]} 19. Rh3 {[%emt 0:00:02]} Nf8 {
[%emt 0:00:01]} 20. Rf1 {[%emt 0:00:09]} b4 {[%emt 0:00:09]} 21. axb4 {
[%emt 0:00:04]} Nxb4 {[%emt 0:00:01]} 22. f5 {[%emt 0:00:19]} exf5 {
[%emt 0:00:03]} 23. exf5 {[%emt 0:00:02]} Qc6 {[%emt 0:00:12]} 24. Ne4 {
[%emt 0:00:41]} Rxe4 {[%emt 0:00:04]} 25. Bxe4 {[%emt 0:00:01]} Qxe4 {
[%emt 0:00:02]} 26. Qxe4 {[%emt 0:00:01]} Bxe4 {[%emt 0:00:01]} 27. f6 {
[%emt 0:00:02]} Bh8 {[%emt 0:00:01]} 28. Rf4 {[%emt 0:00:13]} d5 {
[%emt 0:00:14]} 29. c3 {[%emt 0:00:14]} Nd3 {[%emt 0:00:02]} 30. Rfh4 {
[%emt 0:00:02]} Nxb2 {[%emt 0:00:06]} 31. Bc5 {[%emt 0:00:02]} h5 {
[%emt 0:00:04]} 32. gxh6 {[%emt 0:00:39]} Nh7 {[%emt 0:00:09]} 33. Bd4 {
[%emt 0:00:05]} Bxf6 {[%emt 0:00:09]} 34. Bxf6 {[%emt 0:00:02]} Nxf6 {
[%emt 0:00:01]} 35. h7+ {[%emt 0:00:01]} Kh8 {[%emt 0:00:01]} 36. Rf4 {
[%emt 0:00:01]} Bf5 {[%emt 0:00:16]} 37. Nd4 {[%emt 0:00:01]} Bxh3 {
Kuppenheim gibt auf  (Lag: Av=0.50s, max=0.9s) [%emt 0:00:01]} 0-1

[Event "12h Blitz Kuppenheim Endrunde"]
[Site "Kuppenheim"]
[Date "2005.06.04"]
[Round "?"]
[White "KingLoek"]
[Black "Lerch"]
[Result "1-0"]
[ECO "E15"]
[WhiteElo "2685"]
[BlackElo "2300"]
[PlyCount "105"]
[EventDate "2005.06.03"]
[EventType "blitz"]
[Source "Kuppenheim"]
[SourceDate "2005.01.01"]
[TimeControl "240"]

1. d4 {[%emt 0:00:00]} Nf6 {[%emt 0:00:02]} 2. c4 {[%emt 0:00:03]} e6 {
[%emt 0:00:01]} 3. Nf3 {[%emt 0:00:02]} b6 {[%emt 0:00:02]} 4. g3 {
[%emt 0:00:01]} Ba6 {[%emt 0:00:02]} 5. Qb3 {[%emt 0:00:05]} Nc6 {
[%emt 0:00:06]} 6. Nbd2 {[%emt 0:00:03]} Na5 {[%emt 0:00:05]} 7. Qc3 {
[%emt 0:00:01]} c5 {[%emt 0:00:08]} 8. dxc5 {[%emt 0:00:03]} bxc5 {
[%emt 0:00:03]} 9. Bg2 {[%emt 0:00:01]} Bb7 {[%emt 0:00:02]} 10. O-O {
[%emt 0:00:03]} Be7 {[%emt 0:00:02]} 11. b3 {[%emt 0:00:01]} O-O {
[%emt 0:00:03]} 12. Bb2 {[%emt 0:00:01]} Qb6 {[%emt 0:00:17]} 13. Rad1 {
[%emt 0:00:05]} Rac8 {[%emt 0:00:05]} 14. e4 {[%emt 0:00:10]} d6 {
[%emt 0:00:04]} 15. e5 {[%emt 0:00:01]} dxe5 {[%emt 0:00:03]} 16. Nxe5 {
[%emt 0:00:01]} Bxg2 {[%emt 0:00:02]} 17. Kxg2 {[%emt 0:00:01]} Rfd8 {
[%emt 0:00:14]} 18. Ndf3 {[%emt 0:00:11]} Nc6 {[%emt 0:00:40]} 19. h3 {
[%emt 0:00:30]} Qb7 {[%emt 0:00:07]} 20. Kg1 {[%emt 0:00:09]} Ne4 {
[%emt 0:00:10]} 21. Qe3 {[%emt 0:00:04]} Nxe5 {[%emt 0:00:04]} 22. Nxe5 {
[%emt 0:00:03]} Bf6 {[%emt 0:00:08]} 23. Qf3 {[%emt 0:00:06]} Qa8 {
[%emt 0:00:07]} 24. Rfe1 {[%emt 0:00:11]} Nd6 {[%emt 0:00:21]} 25. Qxa8 {
[%emt 0:00:08]} Rxa8 {[%emt 0:00:00]} 26. g4 {[%emt 0:00:20]} Rac8 {
[%emt 0:00:02]} 27. Kg2 {[%emt 0:00:04]} Kf8 {[%emt 0:00:04]} 28. Rd2 {
[%emt 0:00:05]} Ke8 {[%emt 0:00:04]} 29. Kf3 {[%emt 0:00:04]} Nb7 {
[%emt 0:00:07]} 30. Red1 {[%emt 0:00:03]} a6 {[%emt 0:00:06]} 31. Ke4 {
[%emt 0:00:04]} Rxd2 {[%emt 0:00:01]} 32. Rxd2 {[%emt 0:00:01]} Rd8 {
[%emt 0:00:00]} 33. Rxd8+ {[%emt 0:00:02]} Nxd8 {[%emt 0:00:00]} 34. f4 {
[%emt 0:00:07]} h6 {[%emt 0:00:01]} 35. f5 {[%emt 0:00:05]} Ke7 {[%emt 0:00:01]
} 36. Ba3 {[%emt 0:00:05]} Kd6 {[%emt 0:00:03]} 37. Nd3 {[%emt 0:00:04]} Nb7 {
[%emt 0:00:02]} 38. Bc1 {[%emt 0:00:03]} Bd4 {[%emt 0:00:02]} 39. Bf4+ {
[%emt 0:00:02]} e5 {[%emt 0:00:01]} 40. Bg3 {[%emt 0:00:08]} f6 {[%emt 0:00:01]
} 41. a3 {[%emt 0:00:04]} a5 {[%emt 0:00:01]} 42. Be1 {[%emt 0:00:03]} Nd8 {
[%emt 0:00:01]} 43. Bxa5 {[%emt 0:00:03]} Nc6 {[%emt 0:00:00]} 44. Bd2 {
[%emt 0:00:01]} Ne7 {[%emt 0:00:03]} 45. b4 {[%emt 0:00:02]} Kc6 {
[%emt 0:00:01]} 46. b5+ {[%emt 0:00:01]} Kc7 {[%emt 0:00:03]} 47. a4 {
[%emt 0:00:01]} Nc8 {[%emt 0:00:02]} 48. Ne1 {[%emt 0:00:03]} Nd6+ {
[%emt 0:00:01]} 49. Kd5 {[%emt 0:00:01]} e4 {[%emt 0:00:02]} 50. Bf4 {
[%emt 0:00:02]} Be5 {[%emt 0:00:02]} 51. Bxe5 {[%emt 0:00:00]} fxe5 {
[%emt 0:00:00]} 52. Nc2 {[%emt 0:00:01]} Kd7 {[%emt 0:00:02]} 53. Ne3 {
Kuppenheim gibt auf  (Lag: Av=0.52s, max=0.8s) [%emt 0:00:01]} 1-0

[Event "12h Blitz Kuppenheim Endrunde"]
[Site "Kuppenheim"]
[Date "2005.06.04"]
[Round "?"]
[White "Bauer"]
[Black "KingLoek"]
[Result "1-0"]
[ECO "A00"]
[WhiteElo "2640"]
[BlackElo "2685"]
[PlyCount "143"]
[EventDate "2005.06.03"]
[EventType "blitz"]
[Source "Kuppenheim"]
[SourceDate "2005.01.01"]
[TimeControl "240"]

1. Nc3 {[%emt 0:00:02]} d5 {[%emt 0:00:02]} 2. e4 {[%emt 0:00:01]} d4 {
[%emt 0:00:01]} 3. Nce2 {[%emt 0:00:01]} e5 {[%emt 0:00:01]} 4. Ng3 {
[%emt 0:00:01]} Be6 {[%emt 0:00:01]} 5. c3 {[%emt 0:00:03]} c5 {[%emt 0:00:06]}
6. Qa4+ {[%emt 0:00:02]} Nc6 {[%emt 0:00:02]} 7. Bb5 {[%emt 0:00:02]} Nge7 {
[%emt 0:00:03]} 8. Nf3 {[%emt 0:00:02]} f6 {[%emt 0:00:06]} 9. cxd4 {
[%emt 0:00:04]} cxd4 {[%emt 0:00:01]} 10. Bc4 {[%emt 0:00:01]} Qd7 {
[%emt 0:00:02]} 11. d3 {[%emt 0:00:08]} a6 {[%emt 0:00:05]} 12. Bd2 {
[%emt 0:00:05]} b5 {[%emt 0:00:03]} 13. Bxb5 {[%emt 0:00:05]} Qb7 {
[%emt 0:00:12]} 14. Bc4 {[%emt 0:00:03]} Bxc4 {[%emt 0:00:01]} 15. Qxc4 {
[%emt 0:00:02]} Qxb2 {[%emt 0:00:01]} 16. O-O {[%emt 0:00:02]} Qb5 {
[%emt 0:00:01]} 17. Qc2 {[%emt 0:00:19]} Nd8 {[%emt 0:00:06]} 18. Rab1 {
[%emt 0:00:06]} Qc6 {[%emt 0:00:01]} 19. Qb3 {[%emt 0:00:02]} Qe6 {
[%emt 0:00:03]} 20. Rfc1 {[%emt 0:00:02]} Qxb3 {[%emt 0:00:05]} 21. Rxb3 {
[%emt 0:00:00]} Rc8 {[%emt 0:00:06]} 22. Rxc8 {[%emt 0:00:03]} Nxc8 {
[%emt 0:00:02]} 23. Rb8 {[%emt 0:00:15]} Kd7 {[%emt 0:00:03]} 24. Ra8 {
[%emt 0:00:04]} Ne6 {[%emt 0:00:02]} 25. Rxa6 {[%emt 0:00:24]} Nc5 {
[%emt 0:00:01]} 26. Ra3 {[%emt 0:00:09]} Nxe4 {[%emt 0:00:02]} 27. Ra5 {
[%emt 0:00:17]} Nc5 {[%emt 0:00:03]} 28. Ne1 {[%emt 0:00:02]} Bd6 {
[%emt 0:00:06]} 29. Nf5 {[%emt 0:00:06]} Bf8 {[%emt 0:00:07]} 30. Nxg7 {
[%emt 0:00:04]} Nxd3 {[%emt 0:00:13]} 31. Nxd3 {[%emt 0:00:04]} Bxg7 {
[%emt 0:00:01]} 32. f4 {[%emt 0:00:03]} Re8 {[%emt 0:00:07]} 33. Nc5+ {
[%emt 0:00:08]} Kc6 {[%emt 0:00:05]} 34. fxe5 {[%emt 0:00:03]} fxe5 {
[%emt 0:00:03]} 35. Ne4 {[%emt 0:00:01]} Nb6 {[%emt 0:00:09]} 36. Rc5+ {
[%emt 0:00:02]} Kd7 {[%emt 0:00:02]} 37. Ba5 {[%emt 0:00:01]} Na8 {
[%emt 0:00:09]} 38. Kf1 {[%emt 0:00:04]} Rb8 {[%emt 0:00:11]} 39. Rd5+ {
[%emt 0:00:01]} Ke8 {[%emt 0:00:18]} 40. g4 {[%emt 0:00:06]} Ke7 {
[%emt 0:00:13]} 41. a3 {[%emt 0:00:05]} Nb6 {[%emt 0:00:09]} 42. Bb4+ {
[%emt 0:00:04]} Kf7 {[%emt 0:00:04]} 43. Rd6 {[%emt 0:00:04]} Nc4 {
[%emt 0:00:02]} 44. Ng5+ {[%emt 0:00:01]} Kg8 {[%emt 0:00:01]} 45. Rd7 {
[%emt 0:00:02]} Ne3+ {[%emt 0:00:06]} 46. Ke2 {[%emt 0:00:01]} Nxg4 {
[%emt 0:00:01]} 47. Ne6 {[%emt 0:00:02]} Bf6 {[%emt 0:00:01]} 48. h3 {
[%emt 0:00:02]} Nh6 {[%emt 0:00:01]} 49. Kd3 {[%emt 0:00:07]} Nf7 {
[%emt 0:00:01]} 50. Ke4 {[%emt 0:00:02]} Ng5+ {[%emt 0:00:01]} 51. Kf5 {
[%emt 0:00:01]} Nxe6 {[%emt 0:00:02]} 52. Kxf6 {[%emt 0:00:02]} Rb6 {
[%emt 0:00:02]} 53. Bd6 {[%emt 0:00:05]} Nf8 {[%emt 0:00:03]} 54. Rd8 {
[%emt 0:00:02]} Rxd6+ {[%emt 0:00:02]} 55. Rxd6 {[%emt 0:00:00]} Ng6 {
[%emt 0:00:03]} 56. a4 {[%emt 0:00:01]} e4 {[%emt 0:00:02]} 57. a5 {
[%emt 0:00:01]} e3 {[%emt 0:00:01]} 58. a6 {[%emt 0:00:01]} e2 {[%emt 0:00:01]}
59. a7 {[%emt 0:00:01]} e1=Q {[%emt 0:00:01]} 60. a8=Q+ {[%emt 0:00:01]} Nf8 {
[%emt 0:00:00]} 61. Qd5+ {[%emt 0:00:01]} Kh8 {[%emt 0:00:01]} 62. Qxd4 {
[%emt 0:00:01]} Kg8 {[%emt 0:00:02]} 63. Qd5+ {[%emt 0:00:01]} Kh8 {
[%emt 0:00:00]} 64. Qe5 {[%emt 0:00:00]} Qxe5+ {[%emt 0:00:02]} 65. Kxe5 {
[%emt 0:00:00]} Kg7 {[%emt 0:00:00]} 66. Kf5 {[%emt 0:00:01]} Ng6 {
[%emt 0:00:00]} 67. Rxg6+ {[%emt 0:00:01]} Kf7 {[%emt 0:00:00]} 68. Kg5 {
[%emt 0:00:00]} Kf8 {[%emt 0:00:00]} 69. Rh6 {[%emt 0:00:01]} Kg7 {
[%emt 0:00:00]} 70. Rxh7+ {[%emt 0:00:00]} Kxh7 {[%emt 0:00:01]} 71. h4 {
[%emt 0:00:00]} Kg7 {[%emt 0:00:00]} 72. Kh5 {
Time  (Lag: Av=0.54s, max=1.4s) [%emt 0:00:00]} 1-0

[Event "12h Blitz Kuppenheim Endrunde"]
[Site "Kuppenheim"]
[Date "2005.06.04"]
[Round "?"]
[White "KingLoek"]
[Black "Gurewitsch"]
[Result "1-0"]
[ECO "A47"]
[WhiteElo "2685"]
[BlackElo "2445"]
[PlyCount "73"]
[EventDate "2005.06.03"]
[EventType "blitz"]
[Source "Kuppenheim"]
[SourceDate "2005.01.01"]
[TimeControl "240"]

1. d4 {[%emt 0:00:01]} Nf6 {[%emt 0:00:05]} 2. Nf3 {[%emt 0:00:01]} e6 {
[%emt 0:00:03]} 3. Bg5 {[%emt 0:00:01]} Be7 {[%emt 0:00:03]} 4. Nbd2 {
[%emt 0:00:03]} c5 {[%emt 0:00:05]} 5. e3 {[%emt 0:00:02]} h6 {[%emt 0:00:04]}
6. Bh4 {[%emt 0:00:02]} b6 {[%emt 0:00:02]} 7. c3 {[%emt 0:00:04]} Bb7 {
[%emt 0:00:04]} 8. Bd3 {[%emt 0:00:01]} d6 {[%emt 0:00:03]} 9. a3 {
[%emt 0:00:03]} O-O {[%emt 0:00:03]} 10. O-O {[%emt 0:00:06]} Nc6 {
[%emt 0:00:03]} 11. h3 {[%emt 0:00:02]} Re8 {[%emt 0:00:05]} 12. Qe2 {
[%emt 0:00:02]} Qc7 {[%emt 0:00:07]} 13. Rac1 {[%emt 0:00:02]} Rac8 {
[%emt 0:00:05]} 14. b4 {[%emt 0:00:06]} Qb8 {[%emt 0:00:18]} 15. Bg3 {
[%emt 0:00:04]} cxd4 {[%emt 0:00:08]} 16. cxd4 {[%emt 0:00:03]} Qa8 {
[%emt 0:00:07]} 17. Nc4 {[%emt 0:00:08]} Red8 {[%emt 0:00:06]} 18. b5 {
[%emt 0:00:03]} Nb8 {[%emt 0:00:07]} 19. a4 {[%emt 0:00:02]} Be4 {
[%emt 0:00:09]} 20. Bh2 {[%emt 0:00:21]} Bxd3 {[%emt 0:00:15]} 21. Qxd3 {
[%emt 0:00:02]} Qb7 {[%emt 0:00:03]} 22. Rc2 {[%emt 0:00:03]} Ne4 {
[%emt 0:00:14]} 23. Rfc1 {[%emt 0:00:02]} d5 {[%emt 0:00:13]} 24. Na5 {
[%emt 0:00:26]} bxa5 {[%emt 0:00:07]} 25. Rc7 {[%emt 0:00:01]} Rxc7 {
[%emt 0:00:08]} 26. Rxc7 {[%emt 0:00:01]} Qb6 {[%emt 0:00:10]} 27. Rxe7 {
[%emt 0:00:02]} Rc8 {[%emt 0:00:04]} 28. g4 {[%emt 0:00:22]} a6 {[%emt 0:00:07]
} 29. Ne5 {[%emt 0:00:11]} f6 {[%emt 0:00:09]} 30. Ng6 {[%emt 0:00:05]} axb5 {
[%emt 0:00:05]} 31. Qxb5 {[%emt 0:00:03]} Qxb5 {[%emt 0:00:02]} 32. axb5 {
[%emt 0:00:01]} a4 {[%emt 0:00:04]} 33. Ra7 {[%emt 0:00:01]} Rc1+ {
[%emt 0:00:12]} 34. Kg2 {[%emt 0:00:03]} Rc2 {[%emt 0:00:01]} 35. Bg3 {
[%emt 0:00:04]} Rb2 {[%emt 0:00:14]} 36. Ra8 {. [%emt 0:00:07]} Rxb5 {
[%emt 0:00:03]} 37. Bxb8 {Zeit  (Lag: Av=0.53s, max=0.9s) [%emt 0:00:03]} 1-0

[Event "12h Blitz Kuppenheim Endrunde"]
[Site "Kuppenheim"]
[Date "2005.06.04"]
[Round "?"]
[White "Riff, V."]
[Black "KingLoek"]
[Result "0-1"]
[ECO "D02"]
[WhiteElo "2242"]
[BlackElo "2685"]
[PlyCount "72"]
[EventDate "2005.06.03"]
[EventType "blitz"]
[Source "Kuppenheim"]
[SourceDate "2005.01.01"]
[TimeControl "240"]

1. d4 {[%emt 0:00:02]} d5 {[%emt 0:00:01]} 2. Nf3 {[%emt 0:00:00]} Nf6 {
[%emt 0:00:02]} 3. Bf4 {[%emt 0:00:01]} c5 {[%emt 0:00:03]} 4. e3 {
[%emt 0:00:01]} Nc6 {[%emt 0:00:01]} 5. c3 {[%emt 0:00:01]} Qb6 {[%emt 0:00:01]
} 6. Qb3 {[%emt 0:00:01]} c4 {[%emt 0:00:00]} 7. Qc2 {[%emt 0:00:01]} Bf5 {
[%emt 0:00:02]} 8. Qc1 {[%emt 0:00:00]} e6 {[%emt 0:00:01]} 9. Nbd2 {
[%emt 0:00:01]} Qd8 {[%emt 0:00:03]} 10. Be2 {[%emt 0:00:01]} h6 {
[%emt 0:00:02]} 11. h3 {[%emt 0:00:01]} b5 {[%emt 0:00:01]} 12. Ne5 {
[%emt 0:00:03]} Rc8 {[%emt 0:00:04]} 13. Ndf3 {[%emt 0:00:03]} Bd6 {
[%emt 0:00:15]} 14. Nxc6 {[%emt 0:00:04]} Rxc6 {[%emt 0:00:04]} 15. Bxd6 {
[%emt 0:00:01]} Qxd6 {[%emt 0:00:03]} 16. Ne5 {[%emt 0:00:00]} Rc7 {
[%emt 0:00:01]} 17. Bg4 {[%emt 0:00:06]} O-O {[%emt 0:00:10]} 18. Bxf5 {
[%emt 0:00:04]} exf5 {[%emt 0:00:02]} 19. O-O {[%emt 0:00:01]} b4 {
[%emt 0:00:03]} 20. Qc2 {[%emt 0:00:02]} g6 {[%emt 0:00:02]} 21. cxb4 {
[%emt 0:00:09]} Qxb4 {[%emt 0:00:04]} 22. b3 {[%emt 0:00:01]} c3 {
[%emt 0:00:03]} 23. Nd3 {[%emt 0:00:01]} Qa3 {[%emt 0:00:08]} 24. Nc5 {
[%emt 0:00:02]} Ne4 {[%emt 0:00:02]} 25. Na4 {[%emt 0:00:13]} Rfc8 {
[%emt 0:00:06]} 26. f3 {[%emt 0:00:02]} Nd6 {[%emt 0:00:16]} 27. Rfc1 {
[%emt 0:00:02]} Nb5 {[%emt 0:00:01]} 28. Nc5 {[%emt 0:00:02]} Rxc5 {
[%emt 0:00:07]} 29. dxc5 {[%emt 0:00:02]} Qxc5 {[%emt 0:00:01]} 30. Qd3 {
[%emt 0:00:02]} Re8 {[%emt 0:00:01]} 31. a4 {[%emt 0:00:08]} Rxe3 {
[%emt 0:00:07]} 32. Qxb5 {[%emt 0:00:28]} Re1+ {[%emt 0:00:01]} 33. Kh2 {
[%emt 0:00:01]} Qg1+ {[%emt 0:00:04]} 34. Kg3 {[%emt 0:00:01]} Rxc1 {
[%emt 0:00:03]} 35. Rxc1 {[%emt 0:00:02]} f4+ {[%emt 0:00:12]} 36. Kh4 {
[%emt 0:00:12]} Qf2+ {
Kuppenheim gibt auf  (Lag: Av=0.52s, max=0.6s) [%emt 0:00:10]} 0-1

[Event "12h Blitz Kuppenheim Endrunde"]
[Site "Kuppenheim"]
[Date "2005.06.04"]
[Round "?"]
[White "Cicak"]
[Black "KingLoek"]
[Result "1/2-1/2"]
[ECO "B40"]
[WhiteElo "2530"]
[BlackElo "2685"]
[PlyCount "41"]
[EventDate "2005.06.03"]
[EventType "blitz"]
[Source "Kuppenheim"]
[SourceDate "2005.01.01"]
[TimeControl "240"]

1. e4 {[%emt 0:00:07]} c5 {[%emt 0:00:01]} 2. Nf3 {[%emt 0:00:01]} e6 {
[%emt 0:00:02]} 3. b3 {[%emt 0:00:02]} Nc6 {[%emt 0:00:03]} 4. Bb2 {
[%emt 0:00:01]} d5 {[%emt 0:00:01]} 5. exd5 {[%emt 0:00:03]} exd5 {
[%emt 0:00:01]} 6. Bb5 {[%emt 0:00:01]} Nf6 {[%emt 0:00:02]} 7. O-O {
[%emt 0:00:05]} Be7 {[%emt 0:00:01]} 8. Ne5 {[%emt 0:00:04]} Qc7 {
[%emt 0:00:09]} 9. Re1 {[%emt 0:00:06]} O-O {[%emt 0:00:03]} 10. Bxc6 {
[%emt 0:00:06]} bxc6 {[%emt 0:00:02]} 11. d3 {[%emt 0:00:12]} Bd6 {
[%emt 0:00:06]} 12. Nd2 {[%emt 0:00:03]} Re8 {[%emt 0:00:07]} 13. Ndf3 {
[%emt 0:00:17]} h6 {[%emt 0:00:06]} 14. h3 {[%emt 0:00:20]} Bf5 {[%emt 0:00:06]
} 15. Qd2 {[%emt 0:00:05]} Re6 {[%emt 0:00:04]} 16. Re2 {[%emt 0:00:02]} Rae8 {
[%emt 0:00:05]} 17. Rae1 {[%emt 0:00:02]} Bh7 {[%emt 0:00:20]} 18. Kf1 {
[%emt 0:00:08]} R8e7 {[%emt 0:00:13]} 19. Ng4 {[%emt 0:00:05]} Nxg4 {
[%emt 0:00:09]} 20. hxg4 {[%emt 0:00:06]} Qd7 {[%emt 0:00:11]} 21. Be5 {
Kuppenheim bietet Remis  (Lag: Av=0.50s, max=0.6s) [%emt 0:00:11]} 1/2-1/2

[Event "12h Blitz Kuppenheim Endrunde"]
[Site "Kuppenheim"]
[Date "2005.06.04"]
[Round "?"]
[White "KingLoek"]
[Black "Schmidt"]
[Result "1-0"]
[ECO "A85"]
[WhiteElo "2685"]
[BlackElo "2100"]
[PlyCount "53"]
[EventDate "2005.06.03"]
[EventType "blitz"]
[Source "Kuppenheim"]
[SourceDate "2005.01.01"]
[TimeControl "240"]

1. d4 {[%emt 0:00:01]} d5 {[%emt 0:00:04]} 2. c4 {[%emt 0:00:01]} e6 {
[%emt 0:00:01]} 3. Nc3 {[%emt 0:00:01]} c6 {[%emt 0:00:01]} 4. Nf3 {
[%emt 0:00:03]} f5 {[%emt 0:00:01]} 5. Bf4 {[%emt 0:00:02]} Nf6 {[%emt 0:00:01]
} 6. e3 {[%emt 0:00:01]} Bd6 {[%emt 0:00:00]} 7. c5 {[%emt 0:00:01]} Bxf4 {
[%emt 0:00:04]} 8. exf4 {[%emt 0:00:01]} O-O {[%emt 0:00:01]} 9. Bd3 {
[%emt 0:00:02]} Qe7 {[%emt 0:00:16]} 10. O-O {[%emt 0:00:02]} Kh8 {
[%emt 0:00:01]} 11. g3 {[%emt 0:00:10]} Nbd7 {[%emt 0:00:02]} 12. b4 {
[%emt 0:00:06]} a6 {[%emt 0:00:02]} 13. Rb1 {[%emt 0:00:07]} Rg8 {
[%emt 0:00:02]} 14. Ne2 {[%emt 0:00:03]} Ne4 {[%emt 0:00:02]} 15. Ne1 {
[%emt 0:00:05]} g5 {[%emt 0:00:05]} 16. f3 {[%emt 0:00:03]} Nef6 {
[%emt 0:00:03]} 17. fxg5 {[%emt 0:00:04]} Rxg5 {[%emt 0:00:02]} 18. Qd2 {
[%emt 0:00:01]} Rg7 {[%emt 0:00:02]} 19. Ng2 {[%emt 0:00:02]} Nf8 {
[%emt 0:00:14]} 20. Bc2 {[%emt 0:00:04]} e5 {[%emt 0:00:06]} 21. dxe5 {
[%emt 0:00:02]} Qxe5 {[%emt 0:00:01]} 22. Rbe1 {[%emt 0:00:04]} Qc7 {
[%emt 0:00:02]} 23. Nd4 {[%emt 0:00:03]} Ng6 {[%emt 0:00:31]} 24. Bxf5 {
[%emt 0:00:13]} Bd7 {[%emt 0:00:01]} 25. Bc2 {[%emt 0:00:07]} Rag8 {
[%emt 0:00:03]} 26. Rf2 {[%emt 0:00:05]} Ne5 {[%emt 0:00:29]} 27. Qf4 {
Kuppenheim gibt auf  (Lag: Av=0.54s, max=1.1s) [%emt 0:00:07]} 1-0

[Event "12h Blitz Kuppenheim Endrunde"]
[Site "Kuppenheim"]
[Date "2005.06.04"]
[Round "?"]
[White "Gheng"]
[Black "KingLoek"]
[Result "1/2-1/2"]
[ECO "B82"]
[WhiteElo "2340"]
[BlackElo "2685"]
[PlyCount "140"]
[EventDate "2005.06.03"]
[EventType "blitz"]
[Source "Kuppenheim"]
[SourceDate "2005.01.01"]
[TimeControl "240"]

1. e4 {[%emt 0:00:05]} c5 {[%emt 0:00:05]} 2. Nf3 {[%emt 0:00:05]} d6 {
[%emt 0:00:01]} 3. d4 {[%emt 0:00:18]} cxd4 {[%emt 0:00:01]} 4. Nxd4 {
[%emt 0:00:01]} Nf6 {[%emt 0:00:01]} 5. Nc3 {[%emt 0:00:02]} a6 {[%emt 0:00:02]
} 6. Bd3 {[%emt 0:00:01]} e6 {[%emt 0:00:08]} 7. O-O {[%emt 0:00:01]} Be7 {
[%emt 0:00:03]} 8. Kh1 {[%emt 0:00:02]} O-O {[%emt 0:00:02]} 9. f4 {
[%emt 0:00:01]} Qc7 {[%emt 0:00:04]} 10. Be3 {[%emt 0:00:02]} b5 {
[%emt 0:00:02]} 11. a3 {[%emt 0:00:03]} Bb7 {[%emt 0:00:01]} 12. Nde2 {
[%emt 0:00:02]} Nbd7 {[%emt 0:00:02]} 13. Ng3 {[%emt 0:00:01]} Nb6 {
[%emt 0:00:09]} 14. Qe1 {[%emt 0:00:12]} Nc4 {[%emt 0:00:03]} 15. Bc1 {
[%emt 0:00:03]} Rac8 {[%emt 0:00:04]} 16. b3 {[%emt 0:00:11]} Nxa3 {
[%emt 0:00:12]} 17. Bxa3 {[%emt 0:00:01]} Qxc3 {[%emt 0:00:01]} 18. Qxc3 {
[%emt 0:00:02]} Rxc3 {[%emt 0:00:02]} 19. e5 {[%emt 0:00:01]} Ne8 {
[%emt 0:00:04]} 20. Bb4 {[%emt 0:00:05]} Rc7 {[%emt 0:00:04]} 21. Be4 {
[%emt 0:00:14]} d5 {[%emt 0:00:12]} 22. Bxe7 {[%emt 0:00:09]} Rxe7 {
[%emt 0:00:03]} 23. Bd3 {[%emt 0:00:01]} f6 {[%emt 0:00:05]} 24. Ne2 {
[%emt 0:00:04]} Nc7 {[%emt 0:00:16]} 25. Nd4 {[%emt 0:00:04]} fxe5 {
[%emt 0:00:04]} 26. fxe5 {[%emt 0:00:02]} Rxf1+ {[%emt 0:00:01]} 27. Rxf1 {
[%emt 0:00:03]} Na8 {[%emt 0:00:02]} 28. Kg1 {[%emt 0:00:08]} Nb6 {
[%emt 0:00:02]} 29. Be2 {[%emt 0:00:06]} Bc8 {[%emt 0:00:12]} 30. Bg4 {
[%emt 0:00:04]} Na8 {[%emt 0:00:28]} 31. h4 {[%emt 0:00:05]} Nc7 {
[%emt 0:00:01]} 32. Rf3 {[%emt 0:00:08]} b4 {[%emt 0:00:08]} 33. Nc6 {
[%emt 0:00:03]} Rf7 {[%emt 0:00:01]} 34. Nxb4 {[%emt 0:00:03]} Rxf3 {
[%emt 0:00:02]} 35. gxf3 {[%emt 0:00:02]} Kf7 {[%emt 0:00:03]} 36. Kf2 {
[%emt 0:00:02]} Bd7 {[%emt 0:00:03]} 37. Ke3 {[%emt 0:00:03]} Ke7 {
[%emt 0:00:02]} 38. c4 {[%emt 0:00:03]} dxc4 {[%emt 0:00:02]} 39. bxc4 {
[%emt 0:00:01]} a5 {[%emt 0:00:00]} 40. Nd3 {[%emt 0:00:05]} Na6 {
[%emt 0:00:02]} 41. Kd4 {[%emt 0:00:01]} Nb4 {[%emt 0:00:06]} 42. Nxb4 {
[%emt 0:00:05]} axb4 {[%emt 0:00:01]} 43. f4 {[%emt 0:00:01]} Ba4 {
[%emt 0:00:06]} 44. c5 {[%emt 0:00:04]} Bb5 {[%emt 0:00:03]} 45. Bd1 {
[%emt 0:00:04]} Kd7 {[%emt 0:00:02]} 46. Bb3 {[%emt 0:00:01]} g6 {
[%emt 0:00:01]} 47. Bc2 {[%emt 0:00:04]} Ba6 {[%emt 0:00:02]} 48. Bd1 {
[%emt 0:00:04]} Kc7 {[%emt 0:00:02]} 49. h5 {[%emt 0:00:07]} gxh5 {
[%emt 0:00:01]} 50. Bxh5 {[%emt 0:00:02]} Kd7 {[%emt 0:00:01]} 51. Bd1 {
[%emt 0:00:03]} Bb5 {[%emt 0:00:02]} 52. Bc2 {[%emt 0:00:07]} h5 {
[%emt 0:00:02]} 53. f5 {[%emt 0:00:01]} exf5 {[%emt 0:00:01]} 54. Bxf5+ {
[%emt 0:00:03]} Ke7 {[%emt 0:00:01]} 55. Kd5 {[%emt 0:00:06]} h4 {
[%emt 0:00:07]} 56. Kd4 {[%emt 0:00:07]} Bd7 {[%emt 0:00:02]} 57. Be4 {
[%emt 0:00:02]} Be6 {[%emt 0:00:01]} 58. c6 {[%emt 0:00:01]} Kd8 {
[%emt 0:00:01]} 59. Kc5 {[%emt 0:00:02]} b3 {[%emt 0:00:01]} 60. Kd6 {
[%emt 0:00:01]} Bg4 {[%emt 0:00:05]} 61. c7+ {[%emt 0:00:01]} Kc8 {
[%emt 0:00:03]} 62. e6 {[%emt 0:00:01]} Bxe6 {[%emt 0:00:01]} 63. Kxe6 {
[%emt 0:00:01]} Kxc7 {[%emt 0:00:01]} 64. Kf5 {[%emt 0:00:01]} h3 {
[%emt 0:00:01]} 65. Kg4 {[%emt 0:00:00]} h2 {[%emt 0:00:01]} 66. Kg3 {
[%emt 0:00:01]} Kd6 {[%emt 0:00:01]} 67. Kxh2 {[%emt 0:00:02]} Ke5 {
[%emt 0:00:00]} 68. Bb1 {[%emt 0:00:01]} Kd4 {[%emt 0:00:01]} 69. Bh7 {
[%emt 0:00:00]} b2 {[%emt 0:00:01]} 70. Bg6 {[%emt 0:00:00]} Kc3 {
Zeit  (Lag: Av=0.49s, max=0.7s) . [%emt 0:00:00]} 1/2-1/2